[Event "Polish University-ch Teams 2024"]
[Site "Lublin"]
[Date "2024.02.24"]
[Round "4.10"]
[White "Brozyna, Mateusz"]
[Black "Karpus, Michal"]
[Result "0-1"]
[ECO "C90"]
[WhiteElo "2259"]
[BlackElo "2243"]
[Annotator "TA"]
[PlyCount "76"]
[EventDate "2024.02.22"]
[EventType "team-tourn"]
[EventCountry "POL"]
[SourceTitle "playchess.com"]
[Source "ChessBase"]
[SourceQuality "1"]
[TimeControl "900+5"]

{[%evp 26,76,18,10,8,6,19,16,26,0,0,0,0,0,1,-8,12,-33,-27,-36,-32,-18,66,68,62,69,59,62,56,-188,-206,-578,-568,-578,-556,-570,-565,-574,-427,-572,-572,-577,-563,-619,-516,-497,-476,-632,-627,-692,-650,-29991,-29992]} 1. e4 {[%emt 0:00:01]} e5 {[%emt 0:00:01]} 2. Nf3 {[%emt 0:00:01]} Nc6 {[%emt 0:00:02]} 3. Bc4 {[%emt 0:00:02]} Nf6 {[%emt 0:00:10]} 4. d3 {[%emt 0:00:02]} Be7 {[%emt 0:00:07]} 5. O-O {[%emt 0:00:19]} O-O {[%emt 0:00:07]} 6. Re1 {[%emt 0:00:08]} d6 {[%emt 0:00:02]} 7. c3 {[%emt 0:00:03]} Na5 {[%emt 0:00:06]} 8. Bb5 {[%emt 0:00:04]} a6 {[%emt 0:00:02]} 9. Ba4 {[%emt 0:00:01]} b5 {[%emt 0:00:02]} 10. Bc2 {[%emt 0:00:02]} c5 {[%emt 0:00:06]} 11. Nbd2 {[%emt 0:00:08][%cal Bb1d2,Bd2f1,Bf1g3][%mdl 32]} Re8 {[%emt 0:00:38]} 12. Nf1 {[%emt 0:00:15]} h6 {[%emt 0:00:51]} 13. Ng3 {[%emt 0:00:10]} Bf8 {[%emt 0:00:20]} 14. d4 {[%emt 0:01:11]} exd4 {[%emt 0:00:27]} 15. cxd4 {[%emt 0:00:04]} cxd4 {[%emt 0:00:02]} 16. Nxd4 {[%emt 0:01:00]} Bb7 {[%emt 0:00:14] Die Stellung ist ausgeglichen.} 17. Ndf5 {[%emt 0:02:11]} Rc8 {[%emt 0:00:26]} 18. Bf4 {[%emt 0:00:17][%cal Ob2b3]} Nc4 {[%emt 0:00:14]} 19. b3 {[%emt 0:00:29]} Ne5 {[%emt 0:00:26]} 20. Rc1 $132 {[%emt 0:00:10][%mdl 2048] Weiss leistet Widerstand} Qa5 {[%emt 0:01:52]} 21. Bb1 {[%emt 0:00:53]} Rxc1 {[%emt 0:00:48]} 22. Bxc1 {[%emt 0:00:54][%cal Oh2h3]} d5 {[%emt 0:02:44]} 23. Bd2 {[%emt 0:01:28]} Bb4 {[%emt 0:00:40]} (23... b4 $11) 24. Bxb4 $14 {[%emt 0:00:48]} Qxb4 {[%emt 0:00:01]} 25. f4 {[%emt 0:00:04]} Ng6 {[%emt 0:00:17]} 26. e5 {[%emt 0:00:12]} Nxf4 {[%emt 0:02:05][%cal Od5d4]} 27. Nd6 $2 {[%emt 0:00:26] [#] Ein Fehler, der zur Niederlage führt.} (27. Nxg7 $1 $14 {bleibt weiter vorne.} Ng4 28. N7f5 (28. Nxe8 Qc5+) 28... Qc5+ 29. Nd4) 27... Ng4 $1 $19 {[%emt 0:00:23]} 28. Rf1 $2 {[%emt 0:01:02]} (28. Nxe8 Qc5+) (28. Nxb7 $2 Nd3 29. Qxd3 (29. Bxd3 Qd4+) 29... Qxe1+ 30. Nf1 Qf2+ (30... Qxe5 $2 31. h3 $19) (30... Nxe5 31. Qh7+ Kf8 32. Nd6 $15) 31. Kh1 g6 $19 (31... Rxe5 32. Qh7+ Kf8 33. Qh8+ Ke7 34. Qd8+ Ke6 35. Qd6#) (31... Nxe5 $2 32. Qf5 $19)) (28. Ngf5 {nur so!} Qc5+ 29. Nd4 Rxe5 30. Rxe5 (30. Nxb7 Qxd4+ 31. Kh1 Nf2+ 32. Kg1 Nxd1+) 30... Nxe5 31. Nxb7) 28... Qc5+ {[%emt 0:00:11]} (28... Rxe5 29. Nxb7 (29. Qxg4 $2 Ne2+ 30. Qxe2 Rxe2 $19) 29... Ne3 30. Qc1 $17) 29. Kh1 {[%emt 0:00:10][%cal Od1g4]} Nf2+ {[%emt 0:00:02]} (29... Rxe5 $2 {zu gefräßig.} 30. Qxg4 (30. Nxb7 {ist ein Selbstmatt.} Nf2+ 31. Rxf2 Qxf2) 30... Qxd6 31. Qxf4 $18) 30. Rxf2 {[%emt 0:00:21]} Qxf2 {[%emt 0:00:02]} 31. Qg1 {[%emt 0:00:17]} Qxg1+ {[%emt 0:00:15]} 32. Kxg1 {[%emt 0:00:02]} Rxe5 {[%emt 0:00:03] Droht ...Re1+ und aus.} 33. Kf2 {[%emt 0:00:03]} Bc6 {[%emt 0:00:04]} 34. Ngf5 {[%emt 0:00:09]} Bd7 {[%emt 0:01:32]} 35. Nd4 {[%emt 0:00:04]} g6 {[%emt 0:00:17]} 36. g3 {[%emt 0:00:15]} Nh3+ {[%emt 0:00:04]} 37. Kg2 {[%emt 0:00:11]} Re1 {[%emt 0:00:20][%cal Od7g4] [#] ( -> ...Bg4!)} 38. Bc2 {[%emt 0:00:14]} Bg4 {[%emt 0:00:07] Gewichteter Fehlerwert: Weiß=0.76/Schwarz=0.14 (sehr präzise) .  Verlustzug:     	Weiß=1     	---        Fehler:       	Weiß=1     	Schwarz=1     Ungenau:       	Weiß=4     	---        OK:         	Weiß=5     	Schwarz=9     Bester:       	Weiß=4     	Schwarz=3     Stark:        	---       	Schwarz=1} 0-1

[Event "Polish University-ch Teams 2024"]
[Site "Lublin"]
[Date "2024.02.24"]
[Round "4.11"]
[White "Kaminski, Maciej"]
[Black "Adamczyk, Zuzanna"]
[Result "1-0"]
[ECO "D02"]
[WhiteElo "1869"]
[BlackElo "1970"]
[Annotator "NA RC"]
[PlyCount "81"]
[EventDate "2024.02.22"]
[EventType "team-tourn"]
[EventCountry "POL"]
[SourceTitle "playchess.com"]
[Source "ChessBase"]
[SourceQuality "1"]
[TimeControl "900+5"]

1. Nf3 {[%emt 0:00:03]} d5 {[%emt 0:15:10]} 2. g3 {[%emt 0:00:04]} Nd7 {[%emt 0:00:00]} 3. d4 {[%emt 0:00:06]} Ngf6 {[%emt 0:00:00]} 4. Bg2 {[%emt 0:00:04]} Nb6 {[%emt 0:00:00]} 5. O-O {[%emt 0:00:06]} Bf5 {[%emt 0:00:00]} 6. b3 {[%emt 0:00:24]} e6 {[%emt 0:00:00]} 7. Bb2 {[%emt 0:00:06]} Be7 {[%emt 0:00:00]} 8. Nbd2 {[%emt 0:00:11]} h6 {[%emt 0:00:00]} 9. Ne5 {[%emt 0:00:06]} O-O {[%emt 0:00:00]} 10. c4 {[%emt 0:00:30]} c6 {[%emt 0:00:00]} 11. a4 {[%emt 0:01:21]} a5 {[%emt 0:00:00]} 12. Bc3 {[%emt 0:00:55]} Nbd7 {[%emt 0:00:00]} 13. Ndf3 {[%emt 0:00:15]} Ne4 {[%emt 0:00:00]} 14. Be1 {[%emt 0:01:14]} Nxe5 {[%emt 0:00:00]} 15. Nxe5 {[%emt 0:00:05]} f6 {[%emt 0:00:00]} 16. Nf3 {[%emt 0:01:12]} Bb4 {[%emt 0:00:00]} 17. Nh4 {[%emt 0:01:22]} Bxe1 {[%emt 0:00:00]} 18. Rxe1 {[%emt 0:00:53]} Bh7 {[%emt 0:00:00]} 19. f3 {[%emt 0:01:32]} Nd6 {[%emt 0:00:00]} 20. c5 {[%emt 0:00:11]} Nf7 {[%emt 0:00:00]} 21. f4 {[%emt 0:00:52]} e5 {[%emt 0:00:00]} 22. e3 {[%emt 0:00:11]} Qd7 {[%emt 0:00:36]} 23. Bf3 {[%emt 0:00:29]} e4 {[%emt 0:00:17]} 24. Bg4 {[%emt 0:01:52]} f5 {[%emt 0:00:01]} 25. Bh5 {[%emt 0:00:20]} Nd8 {[%emt 0:00:19]} 26. Bg6 {[%emt 0:00:53]} Rf6 {[%emt 0:00:29]} 27. Bxh7+ {[%emt 0:00:53]} Kxh7 {[%emt 0:00:01]} 28. Qd2 {[%emt 0:00:01]} g5 {[%emt 0:00:10]} 29. Ng2 {[%emt 0:00:07]} b6 {[%emt 0:00:08]} 30. b4 {[%emt 0:00:09]} bxc5 {[%emt 0:00:04]} 31. bxc5 {[%emt 0:00:06]} Rf7 {[%emt 0:00:07]} 32. Rab1 {[%emt 0:00:04]} Qe6 {[%emt 0:00:03]} 33. Rb6 {[%emt 0:00:13]} g4 {[%emt 0:00:03]} 34. Reb1 {[%emt 0:00:08]} Qc8 {[%emt 0:00:04]} 35. Nh4 {[%emt 0:00:33]} Rfa7 {[%emt 0:00:08]} 36. Qb2 {[%emt 0:00:04]} Kg7 {[%emt 0:00:05]} 37. Rb8 {[%emt 0:00:16]} Qa6 {[%emt 0:00:01]} 38. Nxf5+ {[%emt 0:00:10]} Kg6 {[%emt 0:00:15]} 39. Nh4+ {[%emt 0:00:04]} Kf6 {[%emt 0:00:03]} 40. Qb6 {[%emt 0:00:07]} Qd3 {[%emt 0:00:02]} 41. Qxd8+ {[%emt 0:00:03]} 1-0

[Event "Polish University-ch Teams 2024"]
[Site "Lublin"]
[Date "2024.02.24"]
[Round "4.12"]
[White "Orlik, Sandra"]
[Black "Moscicka, Pola"]
[Result "1/2-1/2"]
[ECO "B57"]
[WhiteElo "1836"]
[BlackElo "1960"]
[Annotator "NA RC"]
[PlyCount "78"]
[EventDate "2024.02.22"]
[EventType "team-tourn"]
[EventCountry "POL"]
[SourceTitle "playchess.com"]
[Source "ChessBase"]
[SourceQuality "1"]
[TimeControl "900+5"]

1. e4 {[%emt 0:00:02]} c5 {[%emt 0:00:02]} 2. Nf3 {[%emt 0:00:01]} Nc6 {[%emt 0:00:03]} 3. d4 {[%emt 0:00:03]} cxd4 {[%emt 0:00:02]} 4. Nxd4 {[%emt 0:00:02]} Nf6 {[%emt 0:00:01]} 5. Nc3 {[%emt 0:00:14]} e5 {[%emt 0:00:03]} 6. Nf3 {[%emt 0:00:26]} d6 {[%emt 0:00:25]} 7. Bc4 {[%emt 0:00:25]} Be6 {[%emt 0:00:02]} 8. Bb3 {[%emt 0:00:07]} Be7 {[%emt 0:00:50]} 9. O-O {[%emt 0:00:06]} O-O {[%emt 0:00:12]} 10. Re1 {[%emt 0:00:39]} Qd7 {[%emt 0:00:40]} 11. Nd5 {[%emt 0:00:26]} Rfd8 {[%emt 0:01:53]} 12. Nxe7+ {[%emt 0:01:52]} Qxe7 {[%emt 0:00:30]} 13. Bg5 {[%emt 0:00:27]} Rac8 {[%emt 0:00:41]} 14. Bd5 {[%emt 0:00:20]} h6 {[%emt 0:01:29]} 15. Bxf6 {[%emt 0:02:07]} Qxf6 {[%emt 0:00:04]} 16. c4 {[%emt 0:01:06]} Bg4 {[%emt 0:00:41]} 17. Bxc6 {[%emt 0:00:44]} bxc6 {[%emt 0:01:09]} 18. Re3 {[%emt 0:00:59]} Rd7 {[%emt 0:03:27]} 19. h3 {[%emt 0:00:14]} Be6 {[%emt 0:00:15]} 20. Qa4 {[%emt 0:00:27]} Qg6 {[%emt 0:00:09]} 21. Kh2 {[%emt 0:00:20]} f5 {[%emt 0:00:49]} 22. exf5 {[%emt 0:00:11]} Qxf5 {[%emt 0:00:06]} 23. c5 {[%emt 0:00:32]} Bd5 {[%emt 0:01:10]} 24. cxd6 {[%emt 0:01:04]} e4 {[%emt 0:00:01]} 25. Nd2 {[%emt 0:01:21]} Qxf2 {[%emt 0:00:11]} 26. Qd4 {[%emt 0:00:07]} Qf4+ {[%emt 0:00:27]} 27. Rg3 {[%emt 0:00:44]} Qxd6 {[%emt 0:00:21]} 28. Rf1 {[%emt 0:01:10]} c5 {[%emt 0:00:39]} 29. Qc3 {[%emt 0:00:22]} Re8 {[%emt 0:00:22]} 30. Nc4 {[%emt 0:00:03]} Qe6 {[%emt 0:00:20]} 31. Ne3 {[%emt 0:00:02]} Qe5 {[%emt 0:00:16]} 32. Qxc5 {[%emt 0:00:12]} Bb7 {[%emt 0:00:12]} 33. Rc1 {[%emt 0:00:18]} Qxc5 {[%emt 0:00:08]} 34. Rxc5 {[%emt 0:00:02]} Kf8 {[%emt 0:00:08]} 35. Ra5 {[%emt 0:00:08]} Bc6 {[%emt 0:00:01]} 36. b4 {[%emt 0:00:06]} Ree7 {[%emt 0:00:02]} 37. a4 {[%emt 0:00:04]} Rd3 {[%emt 0:00:02]} 38. b5 {[%emt 0:00:05]} Be8 {[%emt 0:00:07]} 39. Ra6 {[%emt 0:00:05]} Rc7 {[%emt 0:00:06]} 1/2-1/2

[Event "Polish University-ch Teams 2024"]
[Site "Lublin"]
[Date "2024.02.24"]
[Round "4.13"]
[White "Dzida, Kamil"]
[Black "Mis, Mieszko"]
[Result "0-1"]
[ECO "B15"]
[WhiteElo "2403"]
[BlackElo "2325"]
[Annotator "TA"]
[PlyCount "68"]
[EventDate "2024.02.22"]
[EventType "team-tourn"]
[EventCountry "POL"]
[SourceTitle "playchess.com"]
[Source "ChessBase"]
[SourceQuality "1"]
[TimeControl "900+5"]

{[%evp 14,68,28,26,56,30,52,15,22,24,53,3,54,43,53,52,49,18,11,39,35,42,80,100,86,109,121,24,57,-42,0,0,0,-136,-152,-141,-98,-137,-151,-250,-243,-239,-224,-211,-143,-172,-168,-169,-174,-179,-178,-280,-105,-98,-79,-5406,-5369]} 1. e4 {[%emt 0:00:01]} c6 {[%emt 0:00:02]} 2. d4 {[%emt 0:00:05]} d5 {[%emt 0:00:02]} 3. Nc3 {[%emt 0:00:01]} dxe4 {[%emt 0:00:02]} 4. Nxe4 {[%emt 0:00:02]} Nf6 {[%emt 0:00:03]} 5. Nxf6+ {[%emt 0:00:01]} exf6 {[%emt 0:00:01]} 6. c3 {[%emt 0:00:01]} Bd6 {[%emt 0:00:04]} 7. Bd3 {[%emt 0:00:01]} O-O {[%emt 0:00:05]} 8. Qc2 {[%emt 0:00:02]} c5 {[%emt 0:00:01]} 9. Ne2 {[%emt 0:00:55]} g6 {[%emt 0:00:17]} 10. dxc5 {[%emt 0:00:47]} Bxc5 {[%emt 0:00:07] The position is equal.} 11. Bh6 {[%emt 0:00:02]} Re8 {[%emt 0:00:10]} 12. O-O-O {[%emt 0:00:02][%cal Od3g6] [#] Hoping for Bxg6!} Qb6 {[%emt 0:00:33]} ({Black should try} 12... Qc7 $1 $11) 13. Nf4 $14 {[%emt 0:00:25]} Be6 {[%emt 0:01:24]} 14. Nxe6 {[%emt 0:00:39]} Qxe6 {[%emt 0:01:17]} 15. Be4 {[%emt 0:03:31]} Nc6 $1 {[%emt 0:01:08]} (15... Qxe4 $2 16. Qxe4 Nc6 17. Qf3 $18) (15... Qxa2 16. Bxb7 Na6 17. Bxa8 Rxa8 18. Rhe1 $18) 16. Bd5 {[%emt 0:00:01]} Qg4 {[%emt 0:03:17]} 17. Rhe1 {[%emt 0:03:14]} (17. h4 {with more complications.} Rad8 18. h5 gxh5 19. f3) 17... Ne5 {[%emt 0:01:29]} 18. Re4 {[%emt 0:03:32]} Qh5 {[%emt 0:00:45]} (18... Qxg2 $2 19. Rxe5 (19. Bxb7 Qh3 $16) 19... Qxh2 20. Bxf7+ Kh8 21. Rxe8+ $18 (21. Bxe8 Qxh6+ 22. Kb1 fxe5 $17)) 19. Bf4 {[%emt 0:00:01] A strong pair of Bishops.} Rad8 {[%emt 0:01:27]} 20. Qb3 {[%emt 0:00:01]} ({White should play} 20. f3 $16) 20... Kg7 {[%emt 0:00:22]} 21. Bg3 {[%emt 0:00:24]} ({Better is} 21. Qb5 $14 b6 22. f3) 21... Qf5 {[%emt 0:00:26]} 22. f3 {[%emt 0:02:18]} Re7 {[%emt 0:00:58]} 23. Qc2 {[%emt 0:00:44]} ({Of course not} 23. Bxb7 Rb8 24. Qd5 (24. Bxe5 $2 fxe5 25. Qd5 Rexb7 $19) 24... Rexb7 $17) (23. c4 $11 {keeps the balance.}) 23... Red7 $17 {[%emt 0:00:17] Black is more active.} 24. c4 {[%emt 0:00:01] [#]} b5 $1 {[%emt 0:00:35][%mdl 512]} 25. Bxe5 {[%emt 0:00:08]} (25. Ree1 Qh5) 25... fxe5 {[%emt 0:00:04]} 26. Ree1 {[%emt 0:00:01]} (26. b3 $17) 26... Qf4+ $19 {[%emt 0:00:08]} 27. Kb1 {[%emt 0:00:01]} bxc4 {[%emt 0:00:06]} 28. g3 {[%emt 0:00:13]} Qf6 {[%emt 0:00:08]} 29. Qxc4 {[%emt 0:00:06]} Bd4 $36 {[%emt 0:00:04][%mdl 2048] Black is really pushing.} 30. Be4 {[%emt 0:00:06]} Rb8 {[%emt 0:00:04]} 31. Re2 {[%emt 0:00:14]} Qb6 {[%emt 0:00:10]} 32. Rdd2 {[%emt 0:00:00]} (32. f4 {was worth a try.}) 32... Rc7 $2 {[%emt 0:00:10]} (32... f5 $19 {has better winning chances.} 33. Bd3 Qd6) 33. Qb3 $17 {[%emt 0:00:00]} Qc5 {[%emt 0:00:06]} 34. Qc2 {[%emt 0:00:00][%mdl 8192]} (34. Rc2 $17 Rxb3 35. Rxc5 Rxc5 (35... Rxb2+ 36. Rxb2 Rxc5 37. Rb7 $17) 36. axb3) 34... Rxb2+ {[%emt 0:00:05] Weighted Error Value: White=0.49/Black=0.25 (precise) .  Loses game:     	White=1     	---        Missed win:     	---       	Black=1      Mistake:       	White=5     	Black=1      Inaccurate:     	White=4     	Black=6      OK:         	White=9     	Black=8      Best:        	White=2     	Black=2      Strong:       	---       	Black=1} 0-1

[Event "Polish University-ch Teams 2024"]
[Site "Lublin"]
[Date "2024.02.24"]
[Round "4.14"]
[White "Jarocka, Liwia"]
[Black "Klepek, Witold"]
[Result "0-1"]
[ECO "C11"]
[WhiteElo "2199"]
[BlackElo "2262"]
[Annotator "TA"]
[PlyCount "146"]
[EventDate "2024.02.22"]
[EventType "team-tourn"]
[EventCountry "POL"]
[SourceTitle "playchess.com"]
[Source "ChessBase"]
[SourceQuality "1"]
[TimeControl "900+5"]

{[%evp 14,146,16,11,25,4,0,-2,-3,-12,-7,-14,-4,-12,-16,-24,-14,-8,-13,-13,-10,-12,0,-10,-12,-22,-25,-40,0,-43,-41,-29,0,-40,-26,-27,-22,-23,-24,-56,-25,-35,-10,-88,-94,-129,-74,-67,-77,-112,-110,-117,-101,-95,0,0,0,0,0,0,0,0,0,0,0,0,0,-14,-35,-68,-52,-66,-68,-74,-69,-54,-33,-62,-63,-463,-439,-265,-43,-47,0,-354,-86,-73,-8,-409,-404,-404,-425,-402,-408,-316,-408,-364,-266,-720,-673,-1213,-1220,-1091,-1053,-1050,-1014,-805,-883,-871,-871,-860,-844,-29970,-29970,-29972,-29974,-29956,-12847,-29985,-29979,-29978,-29972,-29980,-29978,-29978,-29979,-29979,-29980,-29980,-29981,-29989,-29990,-29990,-29988]} 1. e4 {[%emt 0:00:01]} e6 {[%emt 0:00:01]} 2. d4 {[%emt 0:00:06]} d5 {[%emt 0:00:01]} 3. Nc3 {[%emt 0:00:07]} Nf6 {[%emt 0:00:01]} 4. e5 {[%emt 0:00:12]} Nfd7 {[%emt 0:00:01]} 5. f4 {[%emt 0:00:01]} c5 {[%emt 0:00:00]} 6. Nf3 {[%emt 0:00:04]} Nc6 {[%emt 0:00:01]} 7. Be3 {[%emt 0:00:01]} a6 {[%emt 0:00:01]} 8. a3 {[%emt 0:00:06]} b5 {[%emt 0:00:09]} 9. Be2 {[%emt 0:00:18]} Qb6 {[%emt 0:00:25]} 10. Qd2 {[%emt 0:00:32]} cxd4 {[%emt 0:00:24] The position is equal.} 11. Nxd4 {[%emt 0:00:02]} Bc5 {[%emt 0:00:05]} 12. Rd1 {[%emt 0:00:13]} O-O {[%emt 0:00:57]} 13. O-O {[%emt 0:01:45]} Bb7 {[%emt 0:02:17]} 14. Bf3 {[%emt 0:01:25]} Nxd4 {[%emt 0:00:57]} 15. Bxd4 {[%emt 0:00:01]} Bxd4+ {[%emt 0:00:01]} 16. Qxd4 {[%emt 0:00:01]} Rac8 {[%emt 0:00:03]} 17. Be2 {[%emt 0:00:32]} Qc5 {[%emt 0:00:37]} 18. Rf3 {[%emt 0:02:18]} g6 {[%emt 0:00:30]} 19. Kf1 {[%emt 0:00:35]} Nb6 {[%emt 0:00:16][%cal Bd7b6,Bb6c4,Bc4a5,Ba5b3][%mdl 32]} 20. Rh3 {[%emt 0:01:55]} Rfd8 {[%emt 0:00:48]} 21. Rdd3 {[%emt 0:02:50]} Qxd4 {[%emt 0:01:56]} (21... h5 {is interesting.} 22. Kf2 Kg7 23. Rhg3 Nc4) 22. Rxd4 {[%emt 0:00:01]} Nc4 {[%emt 0:00:01]} 23. Nd1 {[%emt 0:00:03]} h5 {[%emt 0:01:07]} 24. c3 {[%emt 0:00:03]} Na5 {[%emt 0:00:27]} 25. Nf2 {[%emt 0:01:07]} Kf8 {[%emt 0:00:37]} 26. Rg3 {[%emt 0:01:23]} Ke7 {[%emt 0:00:15]} 27. Ke1 {[%emt 0:00:01]} Nb3 {[%emt 0:00:39]} 28. Rd1 {[%emt 0:00:06]} (28. Rb4 $11 {keeps the balance.} Na5 29. a4) 28... d4 $17 {[%emt 0:00:04]} 29. Bf3 {[%emt 0:00:30]} Bxf3 {[%emt 0:00:13]} (29... dxc3 $142 30. bxc3 (30. Bxb7 $2 {is the wrong capture.} Rxd1+ 31. Nxd1 c2 $19) (30. Rxd8 $2 cxb2 31. Be4 Nc5 $19) 30... h4) 30. Rxf3 {[%emt 0:00:00]} dxc3 $1 {[%emt 0:00:11] Black is more active.} 31. Rxd8 {[%emt 0:00:04]} Kxd8 {[%emt 0:00:23]} 32. Rxc3 {[%emt 0:00:01]} Rxc3 {[%emt 0:00:02]} 33. bxc3 {[%emt 0:00:01][%mdl 4096] Endgame. KN-KN} Nc5 {[%emt 0:00:05] Prevents Ne4} (33... Na5 $1 $17 {White must now prevent ...Nc4.} 34. g3 Nc4) 34. Kd2 $11 {[%emt 0:00:07]} Kc7 {[%emt 0:00:06]} 35. c4 {[%emt 0:00:17]} Kc6 {[%emt 0:00:41]} 36. Kc3 {[%emt 0:00:08]} Na4+ {[%emt 0:01:13]} 37. Kb4 {[%emt 0:00:19]} Nb6 {[%emt 0:00:10]} 38. cxb5+ {[%emt 0:00:01]} axb5 {[%emt 0:00:01] aiming for ...Nd5+.} 39. Nd3 {[%emt 0:00:03]} Nd5+ {[%emt 0:00:28]} 40. Kb3 {[%emt 0:00:02]} Ne3 {[%emt 0:00:06]} 41. g3 {[%emt 0:00:13]} Nf1 {[%emt 0:00:09]} 42. Nf2 {[%emt 0:00:26]} Nxh2 {[%emt 0:00:09]} 43. Ne4 {[%emt 0:00:02]} Nf1 {[%emt 0:00:40] Hoping for ...Kd5.} 44. Kb4 {[%emt 0:00:03]} Kb6 {[%emt 0:00:01]} 45. Kb3 {[%emt 0:00:14]} Ne3 {[%emt 0:00:24]} 46. Ng5 $2 {[%emt 0:00:03][%mdl 8192]} (46. Kc3 $15) 46... Nf5 $19 {[%emt 0:00:03]} 47. Ne4 {[%emt 0:00:13]} Nd4+ $2 {[%emt 0:00:10]} ({Better is} 47... Ka5 $1 $19 48. Kb2 b4) 48. Kc3 {[%emt 0:00:05]} Nf5 {[%emt 0:00:04][%mdl 8192]} (48... Nc6 $15) 49. Kb3 $1 {[%emt 0:00:00] [#]} Kc6 $2 {[%emt 0:00:02]} (49... Ka5 $1 $19 {has better winning chances.} 50. Kb2 b4) 50. Kb4 {[%emt 0:00:03]} Nd4 {[%emt 0:00:20]} (50... Ne7 $17) 51. Ng5 $2 {[%emt 0:00:01][%mdl 8192] Black continues to play with concentration.} (51. Kc3 $1 $11 {and White has nothing to worry.} Nf5 52. Kd2) 51... Ne2 {[%emt 0:00:01]} 52. Ne4 {[%emt 0:00:02] [#]} h4 $1 {[%emt 0:00:11][%mdl 512]} 53. gxh4 {[%emt 0:00:01]} Nxf4 {[%emt 0:00:01]} 54. Kc3 {[%emt 0:00:10] [#]} Ng2 $1 {[%emt 0:00:12]} 55. Ng5 {[%emt 0:00:04]} Nxh4 {[%emt 0:00:05] Strongly threatening ...Kc5.} 56. Nxf7 $2 {[%emt 0:00:01]} (56. Kb4) 56... Nf3 {[%emt 0:00:04]} 57. Kd3 {[%emt 0:00:09]} Kd5 {[%emt 0:00:03]} 58. Kc3 {[%emt 0:00:08]} Nxe5 {[%emt 0:00:03]} 59. Ng5 {[%emt 0:00:06]} Nc6 {[%emt 0:00:01]} 60. Kd3 {[%emt 0:00:04]} Ke5 {[%emt 0:00:05]} 61. Nf7+ {[%emt 0:00:05]} Kf4 {[%emt 0:00:06]} 62. Nd6 {[%emt 0:00:04]} b4 {[%emt 0:00:08]} 63. a4 {[%emt 0:00:15]} g5 {[%emt 0:00:04]} 64. Nc4 {[%emt 0:00:06]} g4 {[%emt 0:00:04]} 65. Ke2 {[%emt 0:00:03]} g3 {[%emt 0:00:05] ( -> ...Nd4+)} 66. Nb2 {[%emt 0:00:10]} Ke4 {[%emt 0:00:07] Black mates.} 67. Nc4 {[%emt 0:00:10]} Kd4 {[%emt 0:00:06]} 68. Nd2 {[%emt 0:00:00]} Kc3 {[%emt 0:00:04]} 69. Ne4+ {[%emt 0:00:01]} Kc2 {[%emt 0:00:03]} 70. Nxg3 {[%emt 0:00:09]} b3 {[%emt 0:00:00]} 71. Nf1 {[%emt 0:00:01]} Nd4+ {[%emt 0:00:26]} 72. Kf2 {[%emt 0:00:13]} b2 {[%emt 0:00:02]} 73. Ne3+ {[%emt 0:00:01]} Kc1 {[%emt 0:00:01] Weighted Error Value: White=0.53/Black=0.26 (precise) .  Loses game:     	White=2     	---        Missed win:     	---       	Black=2      Mistake:       	White=2     	Black=4      Inaccurate:     	White=7     	Black=3      OK:         	White=16    	Black=13     Best:        	White=1     	Black=6      Strong:       	White=1     	Black=2} 0-1

[Event "Polish University-ch Teams 2024"]
[Site "Lublin"]
[Date "2024.02.24"]
[Round "4.15"]
[White "Golenia, Jan"]
[Black "Golecki, Jan"]
[Result "1-0"]
[ECO "E15"]
[WhiteElo "2221"]
[BlackElo "2185"]
[Annotator "RC"]
[PlyCount "89"]
[EventDate "2024.02.22"]
[EventType "team-tourn"]
[EventCountry "POL"]
[SourceTitle "playchess.com"]
[Source "ChessBase"]
[SourceQuality "1"]
[TimeControl "900+5"]

1. d4 {[%emt 0:00:03]} Nf6 {[%emt 0:00:01]} 2. c4 {[%emt 0:00:01]} e6 {[%emt 0:00:01]} 3. Nf3 {[%emt 0:00:02]} b6 {[%emt 0:00:01]} 4. g3 {[%emt 0:00:01]} Ba6 {[%emt 0:00:01]} 5. Qc2 {[%emt 0:00:39]} d5 {[%emt 0:01:19]} 6. cxd5 {[%emt 0:02:10]} exd5 {[%emt 0:00:03]} 7. Bg2 {[%emt 0:00:14]} Bd6 {[%emt 0:00:02]} 8. Nc3 {[%emt 0:00:38]} O-O {[%emt 0:00:06]} 9. Bg5 {[%emt 0:00:27]} c6 {[%emt 0:00:14]} 10. O-O {[%emt 0:01:06]} Nbd7 {[%emt 0:00:39]} 11. Qa4 {[%emt 0:02:22]} Bb7 {[%emt 0:00:02]} 12. Nh4 {[%emt 0:00:31]} Re8 {[%emt 0:03:56]} 13. e4 {[%emt 0:02:30]} dxe4 {[%emt 0:00:07]} 14. Nxe4 {[%emt 0:00:02]} Be7 {[%emt 0:00:01]} 15. Nf5 {[%emt 0:00:35]} h6 {[%emt 0:01:48]} 16. Ned6 {[%emt 0:00:25]} Bxd6 {[%emt 0:04:09]} 17. Nxd6 {[%emt 0:00:08]} b5 {[%emt 0:01:06]} 18. Qb3 {[%emt 0:00:08]} Qe7 {[%emt 0:00:47]} 19. Bf4 {[%emt 0:01:14]} Nb6 {[%emt 0:00:14]} 20. Nxe8 {[%emt 0:00:03]} Rxe8 {[%emt 0:00:07]} 21. Qc2 {[%emt 0:00:22]} Nfd5 {[%emt 0:00:03]} 22. Bd2 {[%emt 0:00:11]} Qf6 {[%emt 0:00:01]} 23. Rfe1 {[%emt 0:00:13]} Rd8 {[%emt 0:00:00]} 24. Rad1 {[%emt 0:00:28]} b4 {[%emt 0:00:20]} 25. a3 {[%emt 0:00:33]} a5 {[%emt 0:00:37]} 26. Qc5 {[%emt 0:00:13]} Na4 {[%emt 0:00:22]} 27. Qc2 {[%emt 0:00:15]} Nab6 {[%emt 0:00:01]} 28. axb4 {[%emt 0:00:37]} axb4 {[%emt 0:00:01]} 29. b3 {[%emt 0:00:01]} Ra8 {[%emt 0:00:58]} 30. Qb2 {[%emt 0:00:50]} h5 {[%emt 0:00:09]} 31. h4 {[%emt 0:00:01]} Rd8 {[%emt 0:00:06]} 32. Bg5 {[%emt 0:00:02]} Qd6 {[%emt 0:00:03]} 33. Bxd8 {[%emt 0:00:01]} Qxd8 {[%emt 0:00:01]} 34. Qe2 {[%emt 0:00:03]} Nf6 {[%emt 0:00:11]} 35. Qe7 {[%emt 0:00:03]} Qc8 {[%emt 0:00:05]} 36. Qxb4 {[%emt 0:00:04]} Nbd5 {[%emt 0:00:04]} 37. Qd6 {[%emt 0:00:02]} Ba6 {[%emt 0:00:05]} 38. Rc1 {[%emt 0:00:03]} Bb5 {[%emt 0:00:03]} 39. Bxd5 {[%emt 0:00:03]} Qg4 {[%emt 0:00:15]} 40. Bxc6 {[%emt 0:00:09]} Bxc6 {[%emt 0:00:06]} 41. Qxc6 {[%emt 0:00:01]} Qh3 {[%emt 0:00:01]} 42. Qg2 {[%emt 0:00:01]} Qg4 {[%emt 0:00:01]} 43. Red1 {[%emt 0:00:04]} g5 {[%emt 0:00:01]} 44. hxg5 {[%emt 0:00:02]} Ne4 {[%emt 0:00:02]} 45. f3 {[%emt 0:00:02]} 1-0